[Event "Titled Tuesday Blitz April 26 Early 2022"]
[White "Xiong, Jeffery"]
[Black "Terry, Renato"]
[WhiteFideId "2047640"]
[BlackFideId "3803457"]
[WhiteElo "2727"]
[BlackElo "2577"]
[Result "1-0"]
[Round "09"]
[TimeControl "180+1"]
[Date "2022.04.26"]
[WhiteClock "0:00:47"]
[BlackClock "0:00:02"]

1. e4 {[%clk 0:03:00]}  g6 {[%clk 0:03:00]} 2. d4 {[%clk 0:03:01]}  Bg7 {[%clk 0:03:00]} 3. Nf3 {[%clk 0:03:01]}  d6 {[%clk 0:03:00]} 4. Be3 {[%clk 0:03:02]}  Nf6 {[%clk 0:03:00]} 5. Nc3 {[%clk 0:03:03]}  c6 {[%clk 0:02:57]} 6. Qd2 {[%clk 0:03:03]}  Ng4 {[%clk 0:02:53]} 7. Bg5 {[%clk 0:03:02]}  h6 {[%clk 0:02:53]} 8. Bh4 {[%clk 0:03:03]}  Qa5 {[%clk 0:02:41]} 9. O-O-O {[%clk 0:02:55]}  g5 {[%clk 0:02:32]} 10. Bg3 {[%clk 0:02:55]}  b5 {[%clk 0:02:22]} 11. Kb1 {[%clk 0:02:53]}  b4 {[%clk 0:02:20]} 12. Ne2 {[%clk 0:02:53]}  Nf6 {[%clk 0:02:19]} 13. Qe3 {[%clk 0:02:43]}  Nh5 {[%clk 0:02:09]} 14. Nc1 {[%clk 0:02:41]}  Nd7 {[%clk 0:02:04]} 15. h4 {[%clk 0:02:26]}  g4 {[%clk 0:02:03]} 16. Nd2 {[%clk 0:02:26]}  Nxg3 {[%clk 0:02:00]} 17. fxg3 {[%clk 0:02:27]}  Qc7 {[%clk 0:01:32]} 18. Nc4 {[%clk 0:02:15]}  Nb6 {[%clk 0:01:31]} 19. e5 {[%clk 0:02:05]}  Nxc4 {[%clk 0:01:26]} 20. Bxc4 {[%clk 0:02:06]}  dxe5 {[%clk 0:01:27]} 21. d5 {[%clk 0:02:07]}  cxd5 {[%clk 0:01:09]} 22. Bxd5 {[%clk 0:02:07]}  Rb8 {[%clk 0:01:09]} 23. Nd3 {[%clk 0:01:58]}  O-O {[%clk 0:01:07]} 24. Rhe1 {[%clk 0:01:54]}  e6 {[%clk 0:01:05]} 25. Bb3 {[%clk 0:01:52]}  Rb5 {[%clk 0:01:05]} 26. Nf2 {[%clk 0:01:52]}  f5 {[%clk 0:01:01]} 27. Nd3 {[%clk 0:01:49]}  Rd8 {[%clk 0:00:50]} 28. Rd2 {[%clk 0:01:25]}  Rb6 {[%clk 0:00:47]} 29. Nxb4 {[%clk 0:01:18]}  Rxb4 {[%clk 0:00:39]} 30. Qc3 {[%clk 0:01:18]}  Qe7 {[%clk 0:00:03]} 31. Rxd8+ {[%clk 0:01:18]}  Qxd8 {[%clk 0:00:03]} 32. Qxb4 {[%clk 0:01:18]}  e4 {[%clk 0:00:04]} 33. Qc5 {[%clk 0:01:12]}  Kh7 {[%clk 0:00:02]} 34. Qxa7 {[%clk 0:01:10]}  Qd6 {[%clk 0:00:02]} 35. h5 {[%clk 0:00:47]}  Qxg3 {[%clk 0:00:02]} 36. Rd1 {[%clk 0:00:47]} 1-0


[Site "https://www.chess.com"]

[Event "Titled Tuesday Blitz April 26 Early 2022"]
[White "Yang, Kaiqi"]
[Black "Stribuk, Artiom"]
[WhiteFideId "8604398"]
[BlackFideId "13515659"]
[WhiteElo "2373"]
[BlackElo "2259"]
[Result "0-1"]
[Round "09"]
[TimeControl "180+1"]
[Date "2022.04.26"]
[WhiteClock "0:00:06"]
[BlackClock "0:00:39"]

1. d4 {[%clk 0:03:00]}  Nf6 {[%clk 0:02:58]} 2. c4 {[%clk 0:03:00]}  c5 {[%clk 0:02:57]} 3. d5 {[%clk 0:03:00]}  b5 {[%clk 0:02:56]} 4. cxb5 {[%clk 0:02:59]}  a6 {[%clk 0:02:56]} 5. bxa6 {[%clk 0:02:59]}  g6 {[%clk 0:02:56]} 6. Nc3 {[%clk 0:02:59]}  Bg7 {[%clk 0:02:56]} 7. e4 {[%clk 0:02:59]}  O-O {[%clk 0:02:56]} 8. Nf3 {[%clk 0:02:58]}  Qa5 {[%clk 0:02:53]} 9. Bd3 {[%clk 0:02:53]}  Nxd5 {[%clk 0:02:49]} 10. exd5 {[%clk 0:02:41]}  Bxc3+ {[%clk 0:02:49]} 11. bxc3 {[%clk 0:02:36]}  Qxc3+ {[%clk 0:02:50]} 12. Qd2 {[%clk 0:02:30]}  Qxa1 {[%clk 0:02:50]} 13. O-O {[%clk 0:02:30]}  Qg7 {[%clk 0:02:50]} 14. Bb2 {[%clk 0:01:51]}  f6 {[%clk 0:02:50]} 15. d6 {[%clk 0:01:51]}  e6 {[%clk 0:02:40]} 16. g4 {[%clk 0:01:42]}  Bxa6 {[%clk 0:02:22]} 17. g5 {[%clk 0:01:41]}  Bxd3 {[%clk 0:01:54]} 18. Qxd3 {[%clk 0:01:42]}  Nc6 {[%clk 0:01:46]} 19. Rc1 {[%clk 0:01:13]}  Rxa2 {[%clk 0:01:27]} 20. Bxf6 {[%clk 0:01:10]}  Rxf6 {[%clk 0:01:27]} 21. gxf6 {[%clk 0:01:09]}  Qxf6 {[%clk 0:01:27]} 22. Rxc5 {[%clk 0:01:03]}  Qb2 {[%clk 0:01:10]} 23. Qe3 {[%clk 0:00:55]}  Qb4 {[%clk 0:00:51]} 24. h3 {[%clk 0:00:38]}  Ra3 {[%clk 0:00:47]} 25. Qg5 {[%clk 0:00:11]}  Rxf3 {[%clk 0:00:44]} 26. Rxc6 {[%clk 0:00:10]}  Qe1+ {[%clk 0:00:44]} 27. Kh2 {[%clk 0:00:09]}  Rxf2+ {[%clk 0:00:41]} 28. Kg3 {[%clk 0:00:07]}  Rf5+ {[%clk 0:00:39]} 29. Kg4 {[%clk 0:00:06]} 0-1


[Site "https://www.chess.com"]

[Event "Titled Tuesday Blitz April 26 Early 2022"]
[White "Yeremyan, Alen"]
[Black "Csonka, Balazs"]
[WhiteFideId "13308998"]
[BlackFideId "742910"]
[WhiteElo "2158"]
[BlackElo "2404"]
[Result "1-0"]
[Round "09"]
[TimeControl "180+1"]
[Date "2022.04.26"]
[WhiteClock "0:01:01"]
[BlackClock "0:00:05"]

1. e4 {[%clk 0:02:54]}  e6 {[%clk 0:02:59]} 2. d4 {[%clk 0:02:46]}  d5 {[%clk 0:02:59]} 3. e5 {[%clk 0:02:46]}  c5 {[%clk 0:02:56]} 4. c3 {[%clk 0:02:45]}  Qb6 {[%clk 0:02:57]} 5. Nf3 {[%clk 0:02:45]}  Bd7 {[%clk 0:02:57]} 6. Bd3 {[%clk 0:02:46]}  cxd4 {[%clk 0:02:53]} 7. O-O {[%clk 0:02:47]}  Nc6 {[%clk 0:02:51]} 8. Re1 {[%clk 0:02:46]}  Nge7 {[%clk 0:02:46]} 9. h4 {[%clk 0:02:45]}  Rc8 {[%clk 0:02:35]} 10. h5 {[%clk 0:02:43]}  h6 {[%clk 0:02:35]} 11. Nbd2 {[%clk 0:02:42]}  dxc3 {[%clk 0:02:18]} 12. bxc3 {[%clk 0:02:42]}  Na5 {[%clk 0:02:11]} 13. Rb1 {[%clk 0:02:34]}  Qc7 {[%clk 0:02:09]} 14. Bb2 {[%clk 0:02:26]}  Nec6 {[%clk 0:02:02]} 15. Qe2 {[%clk 0:02:18]}  Be7 {[%clk 0:02:01]} 16. Rbc1 {[%clk 0:02:19]}  Rd8 {[%clk 0:01:29]} 17. Bb1 {[%clk 0:02:18]}  Qb6 {[%clk 0:01:24]} 18. Ba1 {[%clk 0:02:12]}  Bc5 {[%clk 0:01:09]} 19. Bc2 {[%clk 0:02:02]}  Ne7 {[%clk 0:01:02]} 20. Nd4 {[%clk 0:01:56]}  Bxd4 {[%clk 0:00:38]} 21. cxd4 {[%clk 0:01:57]}  Nc4 {[%clk 0:00:38]} 22. Nb3 {[%clk 0:01:34]}  Bb5 {[%clk 0:00:29]} 23. Qg4 {[%clk 0:01:29]}  Kf8 {[%clk 0:00:29]} 24. Bc3 {[%clk 0:01:28]}  Qc7 {[%clk 0:00:23]} 25. Qf4 {[%clk 0:01:24]}  f5 {[%clk 0:00:18]} 26. Nc5 {[%clk 0:01:20]}  Qc6 {[%clk 0:00:17]} 27. a4 {[%clk 0:01:20]}  Ba6 {[%clk 0:00:16]} 28. g4 {[%clk 0:01:17]}  b6 {[%clk 0:00:15]} 29. gxf5 {[%clk 0:01:16]}  exf5 {[%clk 0:00:10]} 30. Bxf5 {[%clk 0:01:16]}  Nxf5 {[%clk 0:00:09]} 31. Qxf5+ {[%clk 0:01:17]}  Kg8 {[%clk 0:00:09]} 32. Nxa6 {[%clk 0:01:17]}  Rf8 {[%clk 0:00:07]} 33. Qg6 {[%clk 0:01:17]}  Qxa4 {[%clk 0:00:06]} 34. Nc7 {[%clk 0:01:12]}  Qd7 {[%clk 0:00:05]} 35. e6 {[%clk 0:01:01]}  Qxc7 {[%clk 0:00:05]} 36. e7 {[%clk 0:01:01]} 1-0


[Site "https://www.chess.com"]

[Event "Titled Tuesday Blitz April 26 Early 2022"]
[White "Yuan, Qingyu"]
[Black "Deac, Bogdan-Daniel"]
[WhiteFideId "8609772"]
[BlackFideId "1226380"]
[WhiteElo "2359"]
[BlackElo "2648"]
[Result "1-0"]
[Round "09"]
[TimeControl "180+1"]
[Date "2022.04.26"]
[WhiteClock "0:00:10"]
[BlackClock "0:00:05"]

1. e4 {[%clk 0:03:00]}  c5 {[%clk 0:02:53]} 2. Nf3 {[%clk 0:03:00]}  Nc6 {[%clk 0:02:50]} 3. Bc4 {[%clk 0:03:00]}  g6 {[%clk 0:02:48]} 4. c3 {[%clk 0:02:53]}  Bg7 {[%clk 0:02:41]} 5. d4 {[%clk 0:02:48]}  cxd4 {[%clk 0:02:41]} 6. cxd4 {[%clk 0:02:49]}  d6 {[%clk 0:02:41]} 7. Nc3 {[%clk 0:02:37]}  Nf6 {[%clk 0:02:39]} 8. h3 {[%clk 0:02:35]}  O-O {[%clk 0:02:28]} 9. d5 {[%clk 0:02:31]}  Ne5 {[%clk 0:02:14]} 10. Nxe5 {[%clk 0:02:29]}  dxe5 {[%clk 0:02:15]} 11. O-O {[%clk 0:02:27]}  Ne8 {[%clk 0:02:15]} 12. a4 {[%clk 0:02:11]}  Nd6 {[%clk 0:02:12]} 13. Bd3 {[%clk 0:02:08]}  f5 {[%clk 0:02:05]} 14. a5 {[%clk 0:01:47]}  a6 {[%clk 0:01:59]} 15. Be3 {[%clk 0:01:45]}  f4 {[%clk 0:01:55]} 16. Bb6 {[%clk 0:01:45]}  Qe8 {[%clk 0:01:56]} 17. Be2 {[%clk 0:01:39]}  h5 {[%clk 0:01:44]} 18. Rc1 {[%clk 0:01:38]}  Qf7 {[%clk 0:01:35]} 19. Bf3 {[%clk 0:01:33]}  Bd7 {[%clk 0:01:32]} 20. Na4 {[%clk 0:01:28]}  Rae8 {[%clk 0:01:14]} 21. Rc7 {[%clk 0:01:23]}  Bb5 {[%clk 0:01:10]} 22. Re1 {[%clk 0:01:21]}  Rc8 {[%clk 0:01:10]} 23. Nc5 {[%clk 0:01:16]}  Rxc7 {[%clk 0:01:07]} 24. Bxc7 {[%clk 0:01:17]}  Rc8 {[%clk 0:01:08]} 25. Bb6 {[%clk 0:01:09]}  Bf6 {[%clk 0:00:49]} 26. b3 {[%clk 0:01:03]}  Kh7 {[%clk 0:00:44]} 27. Be2 {[%clk 0:00:43]}  Be8 {[%clk 0:00:37]} 28. Qd2 {[%clk 0:00:35]}  g5 {[%clk 0:00:30]} 29. g4 {[%clk 0:00:31]}  hxg4 {[%clk 0:00:21]} 30. Bxg4 {[%clk 0:00:29]}  Ra8 {[%clk 0:00:17]} 31. Kg2 {[%clk 0:00:25]}  Bb5 {[%clk 0:00:16]} 32. Rc1 {[%clk 0:00:22]}  Rh8 {[%clk 0:00:16]} 33. Qd1 {[%clk 0:00:21]}  Kg6 {[%clk 0:00:13]} 34. Qf3 {[%clk 0:00:19]}  Qh7 {[%clk 0:00:12]} 35. Nxb7 {[%clk 0:00:18]}  Qh4 {[%clk 0:00:07]} 36. Nxd6 {[%clk 0:00:15]}  exd6 {[%clk 0:00:08]} 37. Bf5+ {[%clk 0:00:16]}  Kh6 {[%clk 0:00:08]} 38. Rc7 {[%clk 0:00:16]}  Be8 {[%clk 0:00:06]} 39. Qg4 {[%clk 0:00:14]}  Bh5 {[%clk 0:00:07]} 40. Qxh4 {[%clk 0:00:14]}  gxh4 {[%clk 0:00:08]} 41. Kh2 {[%clk 0:00:13]}  Bf3 {[%clk 0:00:06]} 42. Rd7 {[%clk 0:00:12]}  Rg8 {[%clk 0:00:06]} 43. Rh7+ {[%clk 0:00:12]}  Kg5 {[%clk 0:00:06]} 44. Bc7 {[%clk 0:00:12]}  Rc8 {[%clk 0:00:05]} 45. Bxc8 {[%clk 0:00:10]} 1-0


[Site "https://www.chess.com"]

[Event "Titled Tuesday Blitz April 26 Early 2022"]
[White "Zia, Tahsin Tajwar"]
[Black "Djokic, Mihailo"]
[WhiteFideId "10211888"]
[BlackFideId "976440"]
[WhiteElo "1800"]
[BlackElo "2202"]
[Result "0-1"]
[Round "09"]
[TimeControl "180+1"]
[Date "2022.04.26"]
[WhiteClock "0:00:04"]
[BlackClock "0:00:50"]

1. d4 {[%clk 0:03:00]}  Nf6 {[%clk 0:03:00]} 2. c4 {[%clk 0:03:00]}  g6 {[%clk 0:03:00]} 3. Nc3 {[%clk 0:03:00]}  Bg7 {[%clk 0:03:01]} 4. e4 {[%clk 0:03:00]}  O-O {[%clk 0:03:02]} 5. Be2 {[%clk 0:03:00]}  d6 {[%clk 0:03:02]} 6. Be3 {[%clk 0:02:59]}  Na6 {[%clk 0:03:02]} 7. h4 {[%clk 0:02:57]}  e5 {[%clk 0:03:02]} 8. d5 {[%clk 0:02:57]}  Nc5 {[%clk 0:03:02]} 9. Qc2 {[%clk 0:02:57]}  h5 {[%clk 0:02:59]} 10. b4 {[%clk 0:02:48]}  Na6 {[%clk 0:02:55]} 11. Rb1 {[%clk 0:02:45]}  Ng4 {[%clk 0:02:55]} 12. Bg5 {[%clk 0:02:44]}  f6 {[%clk 0:02:50]} 13. Bd2 {[%clk 0:02:43]}  f5 {[%clk 0:02:48]} 14. f3 {[%clk 0:02:36]}  Nf6 {[%clk 0:02:36]} 15. Bg5 {[%clk 0:02:26]}  Qe8 {[%clk 0:02:30]} 16. Bd3 {[%clk 0:02:16]}  f4 {[%clk 0:02:20]} 17. Nge2 {[%clk 0:01:51]}  Nh7 {[%clk 0:02:17]} 18. c5 {[%clk 0:01:40]}  Nxg5 {[%clk 0:02:13]} 19. hxg5 {[%clk 0:01:39]}  Qe7 {[%clk 0:02:11]} 20. Bxa6 {[%clk 0:01:27]}  bxa6 {[%clk 0:02:10]} 21. b5 {[%clk 0:01:21]}  Qxg5 {[%clk 0:02:04]} 22. Kf2 {[%clk 0:01:10]}  Qe7 {[%clk 0:01:56]} 23. Na4 {[%clk 0:00:56]}  axb5 {[%clk 0:01:53]} 24. Rxb5 {[%clk 0:00:50]}  Bd7 {[%clk 0:01:52]} 25. c6 {[%clk 0:00:39]}  Bc8 {[%clk 0:01:43]} 26. Nac3 {[%clk 0:00:33]}  Ba6 {[%clk 0:01:39]} 27. Ra5 {[%clk 0:00:24]}  Bc4 {[%clk 0:01:29]} 28. Qa4 {[%clk 0:00:14]}  Bxe2 {[%clk 0:01:27]} 29. Kxe2 {[%clk 0:00:14]}  Rfb8 {[%clk 0:01:24]} 30. Rxa7 {[%clk 0:00:12]}  Rb2+ {[%clk 0:01:23]} 31. Kd3 {[%clk 0:00:12]}  Rxa7 {[%clk 0:01:23]} 32. Qxa7 {[%clk 0:00:13]}  Rxg2 {[%clk 0:01:20]} 33. Qb8+ {[%clk 0:00:11]}  Kh7 {[%clk 0:01:19]} 34. a4 {[%clk 0:00:10]}  Rf2 {[%clk 0:01:16]} 35. a5 {[%clk 0:00:07]}  Rxf3+ {[%clk 0:01:16]} 36. Kc4 {[%clk 0:00:07]}  Qg5 {[%clk 0:01:06]} 37. a6 {[%clk 0:00:05]}  Qg2 {[%clk 0:01:05]} 38. Rxh5+ {[%clk 0:00:03]}  gxh5 {[%clk 0:01:04]} 39. Qe8 {[%clk 0:00:03]}  Qf1+ {[%clk 0:01:00]} 40. Kb4 {[%clk 0:00:02]}  Qh3 {[%clk 0:00:50]} 41. a7 {[%clk 0:00:02]}  Rxc3 {[%clk 0:00:50]} 42. a8=Q {[%clk 0:00:02]}  Rb3+ {[%clk 0:00:50]} 43. Ka5 {[%clk 0:00:03]}  Ra3+ {[%clk 0:00:50]} 44. Kb5 {[%clk 0:00:04]}  Qb3# {[%clk 0:00:50]} 0-1


[Site "https://www.chess.com"]

[Event "Titled Tuesday Blitz April 26 Early 2022"]
[White "volunteers1998"]
[Black "Kejzar, Petra"]
[BlackFideId "14610213"]
[WhiteElo "2297"]
[BlackElo "2003"]
[Result "0-1"]
[Round "09"]
[TimeControl "180+1"]
[Date "2022.04.26"]
[WhiteClock "0:00:01"]
[BlackClock "0:00:05"]

1. e4 {[%clk 0:02:59]}  c5 {[%clk 0:02:59]} 2. Nf3 {[%clk 0:02:58]}  Nc6 {[%clk 0:03:00]} 3. Bb5 {[%clk 0:02:56]}  g6 {[%clk 0:02:58]} 4. O-O {[%clk 0:02:55]}  Bg7 {[%clk 0:02:58]} 5. Re1 {[%clk 0:02:53]}  e6 {[%clk 0:02:55]} 6. c3 {[%clk 0:02:49]}  Nge7 {[%clk 0:02:52]} 7. d4 {[%clk 0:02:47]}  cxd4 {[%clk 0:02:52]} 8. cxd4 {[%clk 0:02:44]}  d5 {[%clk 0:02:49]} 9. e5 {[%clk 0:02:40]}  O-O {[%clk 0:02:46]} 10. Nc3 {[%clk 0:02:35]}  a6 {[%clk 0:02:41]} 11. Bxc6 {[%clk 0:02:32]}  Nxc6 {[%clk 0:02:42]} 12. Bg5 {[%clk 0:02:30]}  f6 {[%clk 0:02:40]} 13. exf6 {[%clk 0:02:28]}  Bxf6 {[%clk 0:02:41]} 14. Bxf6 {[%clk 0:02:25]}  Qxf6 {[%clk 0:02:41]} 15. Rc1 {[%clk 0:02:10]}  Bd7 {[%clk 0:02:40]} 16. Ne2 {[%clk 0:02:04]}  Rac8 {[%clk 0:02:32]} 17. Qd2 {[%clk 0:02:02]}  Ne7 {[%clk 0:02:01]} 18. Rxc8 {[%clk 0:01:57]}  Bxc8 {[%clk 0:01:53]} 19. Qg5 {[%clk 0:01:47]}  Bd7 {[%clk 0:01:41]} 20. Qxf6 {[%clk 0:01:40]}  Rxf6 {[%clk 0:01:42]} 21. Ne5 {[%clk 0:01:40]}  Bc8 {[%clk 0:01:37]} 22. Rc1 {[%clk 0:01:37]}  Rf8 {[%clk 0:01:30]} 23. Rc7 {[%clk 0:01:33]}  Nf5 {[%clk 0:01:28]} 24. g4 {[%clk 0:01:23]}  Nd6 {[%clk 0:01:27]} 25. f3 {[%clk 0:01:09]}  Re8 {[%clk 0:01:12]} 26. Nd3 {[%clk 0:00:58]}  Nb5 {[%clk 0:01:02]} 27. Rc2 {[%clk 0:00:51]}  Rf8 {[%clk 0:00:44]} 28. Kg2 {[%clk 0:00:47]}  Kg7 {[%clk 0:00:42]} 29. Kg3 {[%clk 0:00:40]}  Na7 {[%clk 0:00:39]} 30. Ne5 {[%clk 0:00:35]}  Nb5 {[%clk 0:00:35]} 31. a4 {[%clk 0:00:32]}  Nd6 {[%clk 0:00:33]} 32. Nf4 {[%clk 0:00:25]}  Kf6 {[%clk 0:00:27]} 33. Rc7 {[%clk 0:00:23]}  b5 {[%clk 0:00:19]} 34. Rxh7 {[%clk 0:00:19]}  bxa4 {[%clk 0:00:19]} 35. Ra7 {[%clk 0:00:16]}  Nc4 {[%clk 0:00:17]} 36. Nxc4 {[%clk 0:00:14]}  dxc4 {[%clk 0:00:18]} 37. Rc7 {[%clk 0:00:12]}  Rd8 {[%clk 0:00:12]} 38. Rxc4 {[%clk 0:00:11]}  Bd7 {[%clk 0:00:12]} 39. Rc7 {[%clk 0:00:11]}  Bb5 {[%clk 0:00:11]} 40. Kf2 {[%clk 0:00:08]}  Rxd4 {[%clk 0:00:11]} 41. Kg3 {[%clk 0:00:05]}  Rd2 {[%clk 0:00:11]} 42. h4 {[%clk 0:00:05]}  Rxb2 {[%clk 0:00:06]} 43. g5+ {[%clk 0:00:05]}  Ke5 {[%clk 0:00:07]} 44. Rc5+ {[%clk 0:00:05]}  Kd4 {[%clk 0:00:05]} 45. Rc7 {[%clk 0:00:03]}  e5 {[%clk 0:00:05]} 46. Ne6+ {[%clk 0:00:03]}  Kd5 {[%clk 0:00:05]} 47. Nf8 {[%clk 0:00:01]}  Kd6 {[%clk 0:00:05]} 0-1


[Site "https://www.chess.com"]

[Event "Titled Tuesday Blitz April 26 Early 2022"]
[White "Aaditya Dhingra"]
[Black "Wagner, Dennis"]
[WhiteFideId "25678191"]
[BlackFideId "24650684"]
[WhiteElo "1849"]
[BlackElo "2355"]
[Result "1-0"]
[Round "10"]
[TimeControl "180+1"]
[Date "2022.04.26"]
[WhiteClock "0:00:03"]
[BlackClock "0:00:01"]

1. d4 {[%clk 0:03:00]}  Nf6 {[%clk 0:02:59]} 2. c4 {[%clk 0:02:59]}  e6 {[%clk 0:03:00]} 3. Nf3 {[%clk 0:02:57]}  d5 {[%clk 0:02:57]} 4. Nc3 {[%clk 0:02:55]}  Be7 {[%clk 0:02:50]} 5. Bf4 {[%clk 0:02:53]}  O-O {[%clk 0:02:50]} 6. e3 {[%clk 0:02:54]}  c5 {[%clk 0:02:50]} 7. dxc5 {[%clk 0:02:53]}  Bxc5 {[%clk 0:02:51]} 8. a3 {[%clk 0:02:53]}  Nc6 {[%clk 0:02:51]} 9. b4 {[%clk 0:02:52]}  Bd6 {[%clk 0:02:49]} 10. Bxd6 {[%clk 0:02:50]}  Qxd6 {[%clk 0:02:50]} 11. Be2 {[%clk 0:02:41]}  Rd8 {[%clk 0:02:48]} 12. cxd5 {[%clk 0:02:27]}  Nxd5 {[%clk 0:02:47]} 13. Nxd5 {[%clk 0:02:27]}  Qxd5 {[%clk 0:02:32]} 14. Qc2 {[%clk 0:02:26]}  Bd7 {[%clk 0:02:26]} 15. Rd1 {[%clk 0:02:24]}  Qh5 {[%clk 0:02:25]} 16. h4 {[%clk 0:01:51]}  Qg6 {[%clk 0:02:07]} 17. Bd3 {[%clk 0:01:38]}  Qxg2 {[%clk 0:02:02]} 18. Ke2 {[%clk 0:01:32]}  Qg4 {[%clk 0:01:44]} 19. Rdg1 {[%clk 0:01:31]}  Qh5 {[%clk 0:01:44]} 20. Rg5 {[%clk 0:01:21]}  Qh6 {[%clk 0:01:44]} 21. Rhg1 {[%clk 0:01:20]}  g6 {[%clk 0:01:43]} 22. h5 {[%clk 0:01:19]}  Ne7 {[%clk 0:01:42]} 23. hxg6 {[%clk 0:01:17]}  hxg6 {[%clk 0:01:41]} 24. Ne5 {[%clk 0:01:03]}  Rac8 {[%clk 0:01:41]} 25. Qb1 {[%clk 0:00:58]}  Be8 {[%clk 0:01:41]} 26. Qa1 {[%clk 0:00:46]}  Rxd3 {[%clk 0:01:04]} 27. Kxd3 {[%clk 0:00:39]}  Nd5 {[%clk 0:01:05]} 28. R5g3 {[%clk 0:00:30]}  Qh5 {[%clk 0:00:51]} 29. Kd2 {[%clk 0:00:20]}  Bb5 {[%clk 0:00:46]} 30. Ng4 {[%clk 0:00:17]}  Kf8 {[%clk 0:00:29]} 31. Rh1 {[%clk 0:00:16]}  Qf5 {[%clk 0:00:20]} 32. Rh8+ {[%clk 0:00:15]}  Ke7 {[%clk 0:00:20]} 33. Rxc8 {[%clk 0:00:16]}  Qd3+ {[%clk 0:00:21]} 34. Kc1 {[%clk 0:00:16]}  Qf1+ {[%clk 0:00:11]} 35. Kb2 {[%clk 0:00:16]}  Qe2+ {[%clk 0:00:11]} 36. Rc2 {[%clk 0:00:15]}  Qd3 {[%clk 0:00:12]} 37. Ne5 {[%clk 0:00:13]}  Qe4 {[%clk 0:00:11]} 38. f4 {[%clk 0:00:09]}  Nb6 {[%clk 0:00:10]} 39. Qd1 {[%clk 0:00:07]}  Ba4 {[%clk 0:00:09]} 40. Rc7+ {[%clk 0:00:04]}  Ke8 {[%clk 0:00:04]} 41. Qd4 {[%clk 0:00:04]}  Qh1 {[%clk 0:00:02]} 42. Qd2 {[%clk 0:00:03]}  Nd5 {[%clk 0:00:01]} 43. Nxf7 {[%clk 0:00:03]}  Nxc7 {[%clk 0:00:01]} 44. Nd6+ {[%clk 0:00:03]} 1-0


[Site "https://www.chess.com"]

[Event "Titled Tuesday Blitz April 26 Early 2022"]
[White "Abarca Gonzalez, Nicolas"]
[Black "Svane, Rasmus"]
[WhiteFideId "3409422"]
[BlackFideId "4657101"]
[WhiteElo "2504"]
[BlackElo "2645"]
[Result "0-1"]
[Round "10"]
[TimeControl "180+1"]
[Date "2022.04.26"]
[WhiteClock "0:00:12"]
[BlackClock "0:00:06"]

1. e4 {[%clk 0:03:00]}  c6 {[%clk 0:02:59]} 2. d4 {[%clk 0:03:00]}  d5 {[%clk 0:03:00]} 3. exd5 {[%clk 0:03:01]}  cxd5 {[%clk 0:03:00]} 4. c4 {[%clk 0:03:02]}  Nf6 {[%clk 0:03:00]} 5. Nc3 {[%clk 0:03:02]}  Nc6 {[%clk 0:03:01]} 6. Nf3 {[%clk 0:02:57]}  a6 {[%clk 0:03:01]} 7. cxd5 {[%clk 0:02:57]}  Nxd5 {[%clk 0:03:00]} 8. Bd3 {[%clk 0:02:58]}  g6 {[%clk 0:02:59]} 9. Be4 {[%clk 0:02:55]}  Nf6 {[%clk 0:02:20]} 10. Bxc6+ {[%clk 0:02:54]}  bxc6 {[%clk 0:02:21]} 11. Ne5 {[%clk 0:02:52]}  Bg7 {[%clk 0:02:19]} 12. O-O {[%clk 0:02:30]}  O-O {[%clk 0:02:13]} 13. Re1 {[%clk 0:02:26]}  Bb7 {[%clk 0:01:56]} 14. Qb3 {[%clk 0:02:17]}  Rb8 {[%clk 0:01:55]} 15. Be3 {[%clk 0:02:06]}  c5 {[%clk 0:01:52]} 16. Qc4 {[%clk 0:01:54]}  cxd4 {[%clk 0:01:52]} 17. Qxd4 {[%clk 0:01:54]}  Qxd4 {[%clk 0:01:45]} 18. Bxd4 {[%clk 0:01:55]}  Rfd8 {[%clk 0:01:45]} 19. Ba7 {[%clk 0:01:37]}  Rbc8 {[%clk 0:01:41]} 20. Rad1 {[%clk 0:01:36]}  Rxd1 {[%clk 0:01:09]} 21. Rxd1 {[%clk 0:01:37]}  Ne4 {[%clk 0:01:09]} 22. Bd4 {[%clk 0:01:00]}  Rd8 {[%clk 0:01:08]} 23. f4 {[%clk 0:01:00]}  Nxc3 {[%clk 0:01:05]} 24. bxc3 {[%clk 0:01:01]}  f6 {[%clk 0:01:02]} 25. Nd3 {[%clk 0:00:47]}  e5 {[%clk 0:00:56]} 26. Be3 {[%clk 0:00:12]}  Be4 {[%clk 0:00:33]} 27. Nf2 {[%clk 0:00:11]}  Rxd1+ {[%clk 0:00:34]} 28. Nxd1 {[%clk 0:00:12]}  Bd5 {[%clk 0:00:34]} 29. a3 {[%clk 0:00:08]}  Bf8 {[%clk 0:00:35]} 30. fxe5 {[%clk 0:00:07]}  fxe5 {[%clk 0:00:36]} 31. a4 {[%clk 0:00:07]}  Ba3 {[%clk 0:00:32]} 32. a5 {[%clk 0:00:06]}  Kf7 {[%clk 0:00:31]} 33. Bb6 {[%clk 0:00:06]}  Ke6 {[%clk 0:00:29]} 34. Ne3 {[%clk 0:00:07]}  Bc6 {[%clk 0:00:28]} 35. Kf2 {[%clk 0:00:07]}  Bb2 {[%clk 0:00:27]} 36. c4 {[%clk 0:00:07]}  Kd6 {[%clk 0:00:22]} 37. g3 {[%clk 0:00:08]}  Bd4 {[%clk 0:00:22]} 38. Ke2 {[%clk 0:00:08]}  Bxb6 {[%clk 0:00:18]} 39. axb6 {[%clk 0:00:09]}  a5 {[%clk 0:00:13]} 40. Ng4 {[%clk 0:00:07]}  a4 {[%clk 0:00:12]} 41. Kd2 {[%clk 0:00:07]}  e4 {[%clk 0:00:09]} 42. Kc3 {[%clk 0:00:07]}  Kc5 {[%clk 0:00:09]} 43. Ne3 {[%clk 0:00:03]}  g5 {[%clk 0:00:07]} 44. h4 {[%clk 0:00:02]}  gxh4 {[%clk 0:00:07]} 45. gxh4 {[%clk 0:00:03]}  h5 {[%clk 0:00:07]} 46. Nf5 {[%clk 0:00:04]}  Kxb6 {[%clk 0:00:03]} 47. Kb4 {[%clk 0:00:05]}  Bd7 {[%clk 0:00:02]} 48. c5+ {[%clk 0:00:06]}  Kc6 {[%clk 0:00:02]} 49. Nd4+ {[%clk 0:00:06]}  Kd5 {[%clk 0:00:03]} 50. Nc2 {[%clk 0:00:07]}  a3 {[%clk 0:00:02]} 51. Nxa3 {[%clk 0:00:06]}  e3 {[%clk 0:00:02]} 52. Nc2 {[%clk 0:00:07]}  Ke4 {[%clk 0:00:03]} 53. Ne1 {[%clk 0:00:07]}  e2 {[%clk 0:00:03]} 54. Kc4 {[%clk 0:00:08]}  Ke3 {[%clk 0:00:03]} 55. c6 {[%clk 0:00:09]}  Bxc6 {[%clk 0:00:04]} 56. Kc5 {[%clk 0:00:09]}  Be4 {[%clk 0:00:04]} 57. Kd6 {[%clk 0:00:10]}  Kf2 {[%clk 0:00:04]} 58. Ke5 {[%clk 0:00:09]}  Kxe1 {[%clk 0:00:05]} 59. Kxe4 {[%clk 0:00:10]}  Kf2 {[%clk 0:00:05]} 60. Kf4 {[%clk 0:00:11]}  e1=Q {[%clk 0:00:06]} 61. Kg5 {[%clk 0:00:12]}  Qe2 {[%clk 0:00:06]} 0-1


[Site "https://www.chess.com"]